[Event "*** Titled Tuesday Blitz"]
[Site "Chess.com"]
[Date "2019.02.05"]
[Round "1"]
[White "kleinebeer98"]
[Black "Zarikovs1999"]
[Result "1-0"]
[WhiteElo "2693"]
[BlackElo "2321"]
[TimeControl "180+2"]
[EndTime "13:10:18 PST"]
[Termination "kleinebeer98 won on time"]

1. e4 {[%clk 0:03:00]} 1... c5 {[%clk 0:03:00]} 2. Nf3 {[%clk 0:02:59.7]} 2...
Nf6 {[%clk 0:03:01.3]} 3. Nc3 {[%clk 0:02:58.8]} 3... d5 {[%clk 0:02:57.4]} 4.
exd5 {[%clk 0:03:00.7]} 4... Nxd5 {[%clk 0:02:58.5]} 5. Bb5+ {[%clk 0:03:02.6]}
5... Bd7 {[%clk 0:02:58.4]} 6. Ne5 {[%clk 0:03:04.2]} 6... Bxb5 {[%clk
0:02:53.8]} 7. Qf3 {[%clk 0:03:05.6]} 7... f6 {[%clk 0:02:06.3]} 8. Nxb5 {[%clk
0:03:05.9]} 8... fxe5 {[%clk 0:02:03.7]} 9. Qxd5 {[%clk 0:03:07.2]} 9... Qxd5
{[%clk 0:02:04.1]} 10. Nc7+ {[%clk 0:03:08.5]} 10... Kd7 {[%clk 0:01:52.6]} 11.
Nxd5 {[%clk 0:03:10.4]} 11... Nc6 {[%clk 0:01:48.2]} 12. c3 {[%clk 0:03:07.9]}
12... e6 {[%clk 0:01:34.3]} 13. Ne3 {[%clk 0:03:09.1]} 13... e4 {[%clk 0:01:32]}
14. O-O {[%clk 0:02:43.8]} 14... Ne5 {[%clk 0:01:22.1]} 15. b3 {[%clk
0:02:37.9]} 15... Bd6 {[%clk 0:01:12.8]} 16. Ba3 {[%clk 0:02:32.9]} 16... c4
{[%clk 0:00:53.1]} 17. Bxd6 {[%clk 0:02:26.5]} 17... Kxd6 {[%clk 0:00:49.9]} 18.
bxc4 {[%clk 0:02:22.7]} 18... Rac8 {[%clk 0:00:43.6]} 19. Rab1 {[%clk
0:02:21.1]} 19... b6 {[%clk 0:00:41.6]} 20. Rb4 {[%clk 0:02:21.1]} 20... Rc5
{[%clk 0:00:35.1]} 21. Ra4 {[%clk 0:02:05.1]} 21... Rc7 {[%clk 0:00:20.4]} 22.
c5+ {[%clk 0:02:04.7]} 22... Kxc5 {[%clk 0:00:15.7]} 23. Rxe4 {[%clk 0:02:05.5]}
23... Kd6 {[%clk 0:00:14.2]} 24. d4 {[%clk 0:02:04.1]} 24... Nc4 {[%clk
0:00:13.5]} 25. Nxc4+ {[%clk 0:01:41.5]} 25... Rxc4 {[%clk 0:00:15.4]} 26. Rfe1
{[%clk 0:01:43.4]} 26... Re8 {[%clk 0:00:15.8]} 27. R4e3 {[%clk 0:01:43.5]}
27... b5 {[%clk 0:00:12.6]} 28. a3 {[%clk 0:01:41.1]} 28... a5 {[%clk
0:00:12.1]} 29. Rb1 {[%clk 0:01:17.8]} 29... Rb8 {[%clk 0:00:13.1]} 30. g3
{[%clk 0:01:07.7]} 30... b4 {[%clk 0:00:13.6]} 31. cxb4 {[%clk 0:01:08.5]} 31...
axb4 {[%clk 0:00:14.5]} 32. Reb3 {[%clk 0:01:09]} 32... Rxd4 {[%clk 0:00:13.5]}
33. Rxb4 {[%clk 0:01:06.4]} 33... Rbxb4 {[%clk 0:00:12.9]} 34. axb4 {[%clk
0:01:05.2]} 34... Kc6 {[%clk 0:00:11.5]} 35. b5+ {[%clk 0:01:05.4]} 35... Kb6
{[%clk 0:00:12.8]} 36. Kg2 {[%clk 0:01:06.4]} 36... Rd5 {[%clk 0:00:14]} 37. Kf3
{[%clk 0:00:57.1]} 37... Rxb5 {[%clk 0:00:14.9]} 38. Re1 {[%clk 0:00:56.3]}
38... e5 {[%clk 0:00:12.6]} 39. Ke4 {[%clk 0:00:55.5]} 39... g6 {[%clk
0:00:13.7]} 40. h4 {[%clk 0:00:49.8]} 40... Kc6 {[%clk 0:00:14.2]} 41. Rd1
{[%clk 0:00:49.7]} 41... Rb2 {[%clk 0:00:12.1]} 42. f3 {[%clk 0:00:49.1]} 42...
Re2+ {[%clk 0:00:13]} 43. Kd3 {[%clk 0:00:50]} 43... Rg2 {[%clk 0:00:14.2]} 44.
g4 {[%clk 0:00:49.3]} 44... Rh2 {[%clk 0:00:15.4]} 45. Ke4 {[%clk 0:00:48.5]}
45... Rxh4 {[%clk 0:00:14.6]} 46. Kxe5 {[%clk 0:00:49.3]} 46... Rh3 {[%clk
0:00:12.4]} 47. f4 {[%clk 0:00:48.5]} 47... h5 {[%clk 0:00:12.8]} 48. Rd6+
{[%clk 0:00:42.3]} 48... Kc7 {[%clk 0:00:11.8]} 49. Rxg6 {[%clk 0:00:42.2]}
49... hxg4 {[%clk 0:00:12.8]} 50. f5 {[%clk 0:00:37.5]} 50... Kd7 {[%clk
0:00:10]} 51. Rg7+ {[%clk 0:00:31.7]} 51... Ke8 {[%clk 0:00:10.9]} 52. Ke6
{[%clk 0:00:33.6]} 52... Re3+ {[%clk 0:00:11.2]} 53. Kf6 {[%clk 0:00:34.7]}
53... Kf8 {[%clk 0:00:10.7]} 54. Rxg4 {[%clk 0:00:29.6]} 54... Ra3 {[%clk
0:00:09.6]} 55. Re4 {[%clk 0:00:26.4]} 55... Ra6+ {[%clk 0:00:10.2]} 56. Re6
{[%clk 0:00:28.3]} 56... Ra7 {[%clk 0:00:09.3]} 57. Rb6 {[%clk 0:00:24.7]} 57...
Ra8 {[%clk 0:00:10.6]} 58. Kg6 {[%clk 0:00:23.6]} 58... Rd8 {[%clk 0:00:11]} 59.
Rb7 {[%clk 0:00:19.7]} 59... Kg8 {[%clk 0:00:04.9]} 60. f6 {[%clk 0:00:16.8]}
60... Rf8 {[%clk 0:00:05.4]} 61. f7+ {[%clk 0:00:18.2]} 61... Kh8 {[%clk
0:00:03.8]} 62. Rb5 {[%clk 0:00:19.2]} 1-0

[Event "*** Titled Tuesday Blitz"]
[Site "Chess.com"]
[Date "2019.02.05"]
[Round "1"]
[White "Agent-JL"]
[Black "champ2005"]
[Result "1/2-1/2"]
[WhiteElo "2256"]
[BlackElo "2602"]
[TimeControl "180+2"]
[EndTime "13:10:25 PST"]
[Termination "Game drawn by repetition"]

1. e4 {[%clk 0:02:55.7]} 1... d6 {[%clk 0:03:01.2]} 2. Bc4 {[%clk 0:02:50.2]}
2... Nf6 {[%clk 0:03:01.7]} 3. Nc3 {[%clk 0:02:50.8]} 3... g6 {[%clk 0:03:01.9]}
4. Nf3 {[%clk 0:02:51.4]} 4... Bg7 {[%clk 0:03:03.1]} 5. d4 {[%clk 0:02:52.7]}
5... O-O {[%clk 0:03:04]} 6. O-O {[%clk 0:02:54.2]} 6... c6 {[%clk 0:03:05.3]}
7. h3 {[%clk 0:02:52.3]} 7... d5 {[%clk 0:03:04.9]} 8. Bd3 {[%clk 0:02:50.7]}
8... dxe4 {[%clk 0:03:05.5]} 9. Nxe4 {[%clk 0:02:52.6]} 9... Nxe4 {[%clk
0:03:06.6]} 10. Bxe4 {[%clk 0:02:54.5]} 10... Nd7 {[%clk 0:03:07.8]} 11. c3
{[%clk 0:02:53.2]} 11... Nf6 {[%clk 0:03:08.9]} 12. Bc2 {[%clk 0:02:46.1]} 12...
b6 {[%clk 0:03:09]} 13. Ne5 {[%clk 0:02:45.4]} 13... Bb7 {[%clk 0:03:10.1]} 14.
Re1 {[%clk 0:02:46.9]} 14... e6 {[%clk 0:03:10.9]} 15. Qf3 {[%clk 0:02:46.5]}
15... Qd5 {[%clk 0:03:08.3]} 16. Bg5 {[%clk 0:02:31.5]} 16... Qxf3 {[%clk
0:03:06.4]} 17. Nxf3 {[%clk 0:02:33.4]} 17... h6 {[%clk 0:02:57.8]} 18. Bf4
{[%clk 0:02:23.2]} 18... Rac8 {[%clk 0:02:57.2]} 19. Rad1 {[%clk 0:02:20.8]}
19... Rfe8 {[%clk 0:02:53.9]} 20. Ne5 {[%clk 0:02:16]} 20... Nd5 {[%clk
0:02:52.9]} 21. Bg3 {[%clk 0:02:13.4]} 21... Red8 {[%clk 0:02:47]} 22. h4 {[%clk
0:02:04.9]} 22... c5 {[%clk 0:02:46.7]} 23. dxc5 {[%clk 0:01:58.1]} 23... bxc5
{[%clk 0:02:47.8]} 24. Ba4 {[%clk 0:01:53.7]} 24... Nb6 {[%clk 0:02:43.2]} 25.
Bb3 {[%clk 0:01:40.8]} 25... c4 {[%clk 0:02:32.4]} 26. Rxd8+ {[%clk 0:01:34.1]}
26... Rxd8 {[%clk 0:02:33.7]} 27. Nxc4 {[%clk 0:01:35.4]} 27... Nxc4 {[%clk
0:02:34.8]} 28. Bxc4 {[%clk 0:01:37.3]} 28... Rd2 {[%clk 0:02:32.6]} 29. Be5
{[%clk 0:01:05.5]} 29... Bxe5 {[%clk 0:02:16.9]} 30. Rxe5 {[%clk 0:01:07.4]}
30... Rxb2 {[%clk 0:02:18.3]} 31. Bb3 {[%clk 0:00:56.3]} 31... Kf8 {[%clk
0:02:03.4]} 32. Ra5 {[%clk 0:00:47.6]} 32... a6 {[%clk 0:02:01.3]} 33. Rc5
{[%clk 0:00:40.2]} 33... Be4 {[%clk 0:01:45]} 34. Ra5 {[%clk 0:00:23.3]} 34...
Bb7 {[%clk 0:01:42.2]} 35. Rc5 {[%clk 0:00:23.8]} 35... Rd2 {[%clk 0:01:38.3]}
36. Rc7 {[%clk 0:00:22.8]} 36... Bd5 {[%clk 0:01:36.2]} 37. c4 {[%clk
0:00:21.8]} 37... Be4 {[%clk 0:01:28.1]} 38. Ra7 {[%clk 0:00:21.9]} 38... g5
{[%clk 0:01:28.9]} 39. hxg5 {[%clk 0:00:22.6]} 39... hxg5 {[%clk 0:01:30.8]} 40.
Rxa6 {[%clk 0:00:24.3]} 40... g4 {[%clk 0:01:32.3]} 41. c5 {[%clk 0:00:23.2]}
41... g3 {[%clk 0:01:33.4]} 42. fxg3 {[%clk 0:00:19.2]} 42... Rxg2+ {[%clk
0:01:34.5]} 43. Kf1 {[%clk 0:00:20]} 43... Rxg3 {[%clk 0:01:35.4]} 44. Kf2
{[%clk 0:00:21.4]} 44... Rc3 {[%clk 0:01:35.3]} 45. Ra5 {[%clk 0:00:19.3]} 45...
Ke7 {[%clk 0:01:33.6]} 46. Ke2 {[%clk 0:00:20.4]} 46... Kf6 {[%clk 0:01:15.1]}
47. Kd2 {[%clk 0:00:20.4]} 47... Rd3+ {[%clk 0:01:15.8]} 48. Kc2 {[%clk
0:00:18.4]} 48... Ke5 {[%clk 0:01:12.2]} 49. Kb2 {[%clk 0:00:19.1]} 49... Rd8
{[%clk 0:00:59.1]} 50. Ra7 {[%clk 0:00:15.2]} 50... f5 {[%clk 0:00:56.4]} 51.
Re7 {[%clk 0:00:14]} 51... Bd5 {[%clk 0:00:57.5]} 52. Kc3 {[%clk 0:00:15.3]}
52... f4 {[%clk 0:00:56.8]} 53. Rf7 {[%clk 0:00:15.3]} 53... Ke4 {[%clk
0:00:51.7]} 54. Bxd5+ {[%clk 0:00:12.2]} 54... Rxd5 {[%clk 0:00:51.9]} 55. Kb4
{[%clk 0:00:12.2]} 55... f3 {[%clk 0:00:42.1]} 56. c6 {[%clk 0:00:13.2]} 56...
Rd1 {[%clk 0:00:41.7]} 57. c7 {[%clk 0:00:13.6]} 57... Rc1 {[%clk 0:00:42.6]}
58. a4 {[%clk 0:00:14]} 58... Ke3 {[%clk 0:00:43.6]} 59. Kb5 {[%clk 0:00:15.2]}
59... f2 {[%clk 0:00:38.2]} 60. Kb6 {[%clk 0:00:13.7]} 60... e5 {[%clk
0:00:26.7]} 61. a5 {[%clk 0:00:11.9]} 61... Rb1+ {[%clk 0:00:26.8]} 62. Ka6
{[%clk 0:00:10.3]} 62... Rc1 {[%clk 0:00:24.2]} 63. Kb7 {[%clk 0:00:10.5]} 63...
Rb1+ {[%clk 0:00:23.9]} 64. Ka8 {[%clk 0:00:11.5]} 64... Rc1 {[%clk 0:00:23.3]}
65. Kb8 {[%clk 0:00:12.9]} 65... Rb1+ {[%clk 0:00:24.5]} 66. Ka7 {[%clk
0:00:14.4]} 66... Rc1 {[%clk 0:00:25.7]} 67. Kb7 {[%clk 0:00:15.9]} 67... Rb1+
{[%clk 0:00:26.9]} 68. Ka8 {[%clk 0:00:17.1]} 68... Rc1 {[%clk 0:00:28.2]} 69.
Kb7 {[%clk 0:00:18.4]} 69... Rb1+ {[%clk 0:00:29.3]} 70. Ka8 {[%clk 0:00:18.9]}
70... Rc1 {[%clk 0:00:30.6]} 71. Kb7 {[%clk 0:00:20.2]} 71... Rb1+ {[%clk
0:00:29.1]} 1/2-1/2

[Event "*** Titled Tuesday Blitz"]
[Site "Chess.com"]
[Date "2019.02.05"]
[Round "1"]
[White "Blitzstream"]
[Black "Orest_Vovk"]
[Result "0-1"]
[WhiteElo "2556"]
[BlackElo "2233"]
[TimeControl "180+2"]
[EndTime "13:10:26 PST"]
[Termination "Orest_Vovk won by resignation"]

1. g3 {[%clk 0:03:01.6]} 1... g5 {[%clk 0:03:00.2]} 2. Bg2 {[%clk 0:02:57.1]}
2... Bg7 {[%clk 0:02:58.1]} 3. e3 {[%clk 0:02:57.9]} 3... d5 {[%clk 0:02:54.7]}
4. Ne2 {[%clk 0:02:58.8]} 4... h5 {[%clk 0:02:52]} 5. h3 {[%clk 0:02:59.7]} 5...
h4 {[%clk 0:02:49.1]} 6. g4 {[%clk 0:03:00.4]} 6... f5 {[%clk 0:02:49.3]} 7.
gxf5 {[%clk 0:02:57.5]} 7... Bxf5 {[%clk 0:02:49.6]} 8. c4 {[%clk 0:02:56.5]}
8... c6 {[%clk 0:02:15]} 9. cxd5 {[%clk 0:02:55.5]} 9... cxd5 {[%clk 0:02:13.8]}
10. Qb3 {[%clk 0:02:54.6]} 10... e6 {[%clk 0:02:10.6]} 11. Qxb7 {[%clk
0:02:51.7]} 11... Nd7 {[%clk 0:02:11.6]} 12. Nbc3 {[%clk 0:02:47.4]} 12... Ne7
{[%clk 0:01:55.1]} 13. d4 {[%clk 0:02:23.8]} 13... O-O {[%clk 0:01:51.6]} 14.
Qb3 {[%clk 0:02:15.1]} 14... Rb8 {[%clk 0:01:47.8]} 15. Qa3 {[%clk 0:02:06]}
15... Nc6 {[%clk 0:01:42.4]} 16. Bd2 {[%clk 0:02:02.7]} 16... Nb4 {[%clk
0:01:39.3]} 17. O-O {[%clk 0:02:03.4]} 17... Nc2 {[%clk 0:01:35.2]} 18. Qxa7
{[%clk 0:02:03.9]} 18... Nxa1 {[%clk 0:01:25.1]} 19. Rxa1 {[%clk 0:02:05.8]}
19... Rxb2 {[%clk 0:01:22.1]} 20. Bc1 {[%clk 0:02:06.9]} 20... Rc2 {[%clk
0:01:20.1]} 21. Ba3 {[%clk 0:02:07.6]} 21... Rf7 {[%clk 0:01:17]} 22. Qa4 {[%clk
0:02:01.2]} 22... Bd3 {[%clk 0:01:06.6]} 23. Rd1 {[%clk 0:01:21.3]} 23... Rxe2
{[%clk 0:00:57.7]} 24. Nxe2 {[%clk 0:01:18.8]} 24... Bxe2 {[%clk 0:00:58.3]} 25.
Rd2 {[%clk 0:01:16.7]} 25... Bf3 {[%clk 0:00:48.5]} 26. Bxf3 {[%clk 0:01:10.5]}
26... Rxf3 {[%clk 0:00:50.4]} 27. Kg2 {[%clk 0:01:11.4]} 27... Rf7 {[%clk
0:00:51.4]} 28. Bd6 {[%clk 0:00:47.1]} 28... Qf6 {[%clk 0:00:49.4]} 29. f4
{[%clk 0:00:46.3]} 29... Qf5 {[%clk 0:00:44]} 30. Qc2 {[%clk 0:00:43]} 30...
Qxc2 {[%clk 0:00:30.5]} 31. Rxc2 {[%clk 0:00:44.9]} 31... Bf8 {[%clk 0:00:25.2]}
32. Bc7 {[%clk 0:00:40.8]} 32... gxf4 {[%clk 0:00:23.9]} 33. Bxf4 {[%clk
0:00:42.7]} 33... Nb6 {[%clk 0:00:17.9]} 34. Rc6 {[%clk 0:00:41.9]} 34... Nc4
{[%clk 0:00:17.7]} 35. Rxe6 {[%clk 0:00:41.3]} 35... Ra7 {[%clk 0:00:18.1]} 36.
Kf3 {[%clk 0:00:39.4]} 36... Rxa2 {[%clk 0:00:18.5]} 37. Kg4 {[%clk 0:00:40.6]}
37... Rg2+ {[%clk 0:00:18.6]} 38. Kxh4 {[%clk 0:00:38.4]} 38... Kf7 {[%clk
0:00:19.9]} 39. Rc6 {[%clk 0:00:34]} 39... Be7+ {[%clk 0:00:19.6]} 40. Kh5
{[%clk 0:00:34.5]} 40... Nd2 {[%clk 0:00:20.3]} 41. Rc7 {[%clk 0:00:30.1]} 41...
Ne4 {[%clk 0:00:20.4]} 42. Be5 {[%clk 0:00:12.5]} 42... Nf6+ {[%clk 0:00:13]}
43. Bxf6 {[%clk 0:00:09.6]} 43... Kxf6 {[%clk 0:00:14.9]} 44. Rd7 {[%clk
0:00:07.3]} 44... Rg5+ {[%clk 0:00:12.1]} 45. Kh4 {[%clk 0:00:06.6]} 45... Rg7
{[%clk 0:00:09]} 46. Kh5 {[%clk 0:00:04.5]} 46... Ke6 {[%clk 0:00:07.9]} 47. Ra7
{[%clk 0:00:05.5]} 47... Kf5 {[%clk 0:00:08.3]} 48. Kh6 {[%clk 0:00:05.7]} 48...
Rf7 {[%clk 0:00:09.2]} 49. Ra5 {[%clk 0:00:05.5]} 49... Ke4 {[%clk 0:00:09.6]}
50. Kg6 {[%clk 0:00:06.2]} 50... Rf3 {[%clk 0:00:10.3]} 51. Ra7 {[%clk
0:00:06.8]} 51... Bh4 {[%clk 0:00:10.7]} 52. Kh5 {[%clk 0:00:07.7]} 52... Bf2
{[%clk 0:00:10.9]} 53. Kg4 {[%clk 0:00:08.8]} 53... Rxe3 {[%clk 0:00:10.9]} 54.
h4 {[%clk 0:00:09.5]} 54... Kxd4 {[%clk 0:00:10.7]} 55. h5 {[%clk 0:00:10.7]}
55... Rg3+ {[%clk 0:00:12]} 56. Kf4 {[%clk 0:00:11.2]} 56... Rh3 {[%clk
0:00:13]} 57. Ra4+ {[%clk 0:00:11.7]} 57... Kc5 {[%clk 0:00:13.1]} 58. Kg5
{[%clk 0:00:13.1]} 58... Be3+ {[%clk 0:00:13.5]} 59. Kg6 {[%clk 0:00:13.9]}
59... d4 {[%clk 0:00:14.8]} 60. Ra3 {[%clk 0:00:14.3]} 60... Kd5 {[%clk
0:00:15.7]} 61. Ra5+ {[%clk 0:00:10.2]} 61... Ke4 {[%clk 0:00:16.9]} 62. Ra8
{[%clk 0:00:11.7]} 62... Kf3 {[%clk 0:00:16.7]} 63. Re8 {[%clk 0:00:11.9]} 63...
Ke2 {[%clk 0:00:17]} 64. Rd8 {[%clk 0:00:13.1]} 64... d3 {[%clk 0:00:17.4]} 65.
h6 {[%clk 0:00:13.8]} 65... Rxh6+ {[%clk 0:00:17.7]} 66. Kf5 {[%clk 0:00:15.3]}
66... Rh4 {[%clk 0:00:18.7]} 0-1

[Event "*** Titled Tuesday Blitz"]
[Site "Chess.com"]
[Date "2019.02.05"]
[Round "1"]
[White "nailbeshirli"]
[Black "evgenysharapov"]
[Result "1-0"]
[WhiteElo "2672"]
[BlackElo "2300"]
[TimeControl "180+2"]
[EndTime "13:10:45 PST"]
[Termination "nailbeshirli won by resignation"]

1. e4 {[%clk 0:02:59]} 1... c5 {[%clk 0:02:58.7]} 2. Nf3 {[%clk 0:02:45.7]} 2...
d6 {[%clk 0:02:59.2]} 3. Nc3 {[%clk 0:02:43.3]} 3... e5 {[%clk 0:02:59.2]} 4.
Bc4 {[%clk 0:02:43.1]} 4... Be7 {[%clk 0:02:59.3]} 5. O-O {[%clk 0:02:35.1]}
5... Nf6 {[%clk 0:02:59.5]} 6. d3 {[%clk 0:02:35.2]} 6... O-O {[%clk 0:02:59.8]}
7. h3 {[%clk 0:02:36.6]} 7... Nc6 {[%clk 0:03:00.6]} 8. Be3 {[%clk 0:02:37.3]}
8... Nd4 {[%clk 0:03:00.8]} 9. a3 {[%clk 0:02:36.1]} 9... Be6 {[%clk 0:02:59.5]}
10. Nd2 {[%clk 0:02:35.1]} 10... d5 {[%clk 0:02:55.6]} 11. exd5 {[%clk
0:02:33.9]} 11... Nxd5 {[%clk 0:02:56]} 12. Nxd5 {[%clk 0:02:30.1]} 12... Bxd5
{[%clk 0:02:56.3]} 13. c3 {[%clk 0:02:20.2]} 13... Nf5 {[%clk 0:02:45.8]} 14.
Re1 {[%clk 0:02:12.1]} 14... Nxe3 {[%clk 0:02:38.2]} 15. Rxe3 {[%clk 0:02:03.1]}
15... Bf6 {[%clk 0:02:30.5]} 16. Bxd5 {[%clk 0:01:42.8]} 16... Qxd5 {[%clk
0:02:29.9]} 17. Qg4 {[%clk 0:01:41]} 17... Rad8 {[%clk 0:02:22.3]} 18. Rae1
{[%clk 0:01:37.1]} 18... g6 {[%clk 0:02:04.5]} 19. Nc4 {[%clk 0:01:36.4]} 19...
b6 {[%clk 0:01:45.6]} 20. Qg3 {[%clk 0:01:31.9]} 20... Bg7 {[%clk 0:01:38.1]}
21. Qh4 {[%clk 0:01:26.1]} 21... f6 {[%clk 0:01:30.1]} 22. a4 {[%clk 0:01:26]}
22... Qc6 {[%clk 0:01:24.3]} 23. Na3 {[%clk 0:01:23.3]} 23... Rd7 {[%clk
0:01:22.7]} 24. Qc4+ {[%clk 0:01:20.6]} 24... Qd5 {[%clk 0:01:22]} 25. Qb5
{[%clk 0:01:14.9]} 25... Rfd8 {[%clk 0:01:19]} 26. a5 {[%clk 0:01:07.7]} 26...
Qb7 {[%clk 0:01:09.6]} 27. Nc4 {[%clk 0:01:05.8]} 27... Rb8 {[%clk 0:00:46.9]}
28. axb6 {[%clk 0:01:02.1]} 28... axb6 {[%clk 0:00:47.2]} 29. Ra1 {[%clk
0:01:03.5]} 29... Bh6 {[%clk 0:00:38.2]} 30. Ra6 {[%clk 0:00:47.4]} 30... Qc7
{[%clk 0:00:25.4]} 31. Re1 {[%clk 0:00:46.4]} 31... Kh8 {[%clk 0:00:20.1]} 32.
Rxb6 {[%clk 0:00:44.2]} 32... Rxb6 {[%clk 0:00:20]} 33. Nxb6 {[%clk 0:00:44.3]}
33... Rd6 {[%clk 0:00:20.8]} 34. Nc4 {[%clk 0:00:40.2]} 34... Rxd3 {[%clk
0:00:20.5]} 35. Nxe5 {[%clk 0:00:37.4]} 35... Rd8 {[%clk 0:00:20.1]} 36. Nc4
{[%clk 0:00:39]} 36... Bg7 {[%clk 0:00:19.4]} 37. Qa6 {[%clk 0:00:37.2]} 37...
h5 {[%clk 0:00:19]} 38. Qe6 {[%clk 0:00:36.1]} 38... Kh7 {[%clk 0:00:18.7]} 39.
Qe2 {[%clk 0:00:33.8]} 39... Rd7 {[%clk 0:00:18.1]} 40. g3 {[%clk 0:00:30.5]}
40... f5 {[%clk 0:00:18.7]} 41. h4 {[%clk 0:00:28.2]} 41... Qb7 {[%clk
0:00:18.9]} 42. Qe8 {[%clk 0:00:24]} 42... Qc7 {[%clk 0:00:14.2]} 43. Re6 {[%clk
0:00:21.9]} 43... Rf7 {[%clk 0:00:13.4]} 44. Kg2 {[%clk 0:00:22.9]} 44... f4
{[%clk 0:00:14]} 45. Nd6 {[%clk 0:00:20.4]} 45... f3+ {[%clk 0:00:12]} 46. Kh3
{[%clk 0:00:18.6]} 46... Rf6 {[%clk 0:00:08.6]} 47. Ne4 {[%clk 0:00:19.5]} 47...
Rxe6 {[%clk 0:00:08.2]} 48. Ng5+ {[%clk 0:00:20.1]} 48... Kh6 {[%clk 0:00:07.8]}
49. Qg8 {[%clk 0:00:19.7]} 49... Bf6 {[%clk 0:00:04.8]} 50. Nf7+ {[%clk
0:00:18.9]} 50... Qxf7 {[%clk 0:00:05.3]} 51. Qxf7 {[%clk 0:00:20.8]} 51... Rb6
{[%clk 0:00:06]} 52. Qf8+ {[%clk 0:00:17.4]} 52... Bg7 {[%clk 0:00:06.6]} 53.
Qxf3 {[%clk 0:00:18.3]} 53... Rxb2 {[%clk 0:00:06.8]} 54. Qe3+ {[%clk
0:00:19.5]} 54... Kh7 {[%clk 0:00:07.1]} 55. Qxc5 {[%clk 0:00:18]} 55... Rc2
{[%clk 0:00:07.9]} 56. c4 {[%clk 0:00:17.9]} 56... Rc3 {[%clk 0:00:08.6]} 57.
Qd5 {[%clk 0:00:18.1]} 57... Rc2 {[%clk 0:00:09.3]} 58. c5 {[%clk 0:00:19.5]}
58... Rxf2 {[%clk 0:00:09.8]} 59. c6 {[%clk 0:00:20.4]} 59... Rf7 {[%clk
0:00:10.2]} 60. Qxf7 {[%clk 0:00:21.2]} 1-0